{"text_format":"1","workbook":"xlsx","n_sheets":2,"sheets":["Рабочая зона","База данных"],"not_rendered":{"charts":0,"images":0,"macros":1,"external_links":0,"defined_names":0,"comments":0,"pivot_tables":0},"unopened":[],"bounds":{"document_bytes":16777216,"sheet_cells":100000,"rows_first":2000,"rows_last":500,"rows_between":2000,"halvings":0,"cell_chars":16384,"cell_head_chars":4096},"cells_cut":0,"cells_raw":0,"read":"whole","date_system":"1900"}

{"sheet":"Рабочая зона","index":0,"n_rows":24,"n_cols":29,"rows_kept":24,"cut":false,"hidden":false,"merged":[[6,11,6,14],[7,11,7,14],[3,1,3,6],[2,11,2,17],[3,11,3,14],[4,11,4,14],[5,11,5,14]]}
[]
[]
[null,null,null,null,null,null,null,null,"Результат",null,null,"краткая выжимка из таблицы, может быть динамической, активируется при нажатии на номер заказа",null,null,null,null,null,null,null,null,null,null,null,null,null,null,null,null,"да"]
[null,"Введите запрос…",null,null,null,null,null,null,null,null,null,"цена",null,null,null,{"$f":"IF(AND(CELL(\"col\")>8,CELL(\"col\")<22,CELL(\"row\")>11,CELL(\"row\")<25),VLOOKUP(INDEX(I:I,CELL(\"row\")),'База данных'!A:H,3,),\"\")","v":""},null,null,null,null,null,null,null,null,null,null,null,null,"нет"]
[null,null,null,null,null,null,null,null,null,null,null,"Срок доставки",null,null,null,{"$f":"IF(AND(CELL(\"col\")>8,CELL(\"col\")<22,CELL(\"row\")>11,CELL(\"row\")<25),VLOOKUP(INDEX(I:I,CELL(\"row\")),'База данных'!A:H,5,),\"\")","v":""}]
[null,"Дополнительные параметры",null,null,null,null,null,null,null,null,null,"Заказчик",null,null,null,{"$f":"IF(AND(CELL(\"col\")>8,CELL(\"col\")<22,CELL(\"row\")>11,CELL(\"row\")<25),VLOOKUP(INDEX(I:I,CELL(\"row\")),'База данных'!A:H,4,),\"\")","v":""}]
[null,null,null,null,null,null,null,null,null,null,null,"…"]
[null,"заказ закрыт",null,null,null,null,null,null,null,null,null,"…",null,null,null,null,null,null,null,null,null,null,null,null,null,null,null,null,"Выполнено"]
[null,"ВИП заказ",null,null,null,null,null,null,null,null,null,null,null,null,null,null,null,null,null,null,null,null,null,null,null,null,null,null,"В обработке"]
[null,"Срочный заказ",null,null,null,null,null,null,null,null,null,null,null,null,null,null,null,null,null,null,null,null,null,null,null,null,null,null,"Отменено"]
[null,"Статус заказа"]
[null,"Диапазон цены",null,"от",null,"до",null,null,{"$f":"IFERROR(INDEX('База данных'!A:A,SMALL(IF(IF($D$10=\"\",1,'База данных'!$G$2:$G$100=$D$10)*IF($D$11=\"\",1,$D$11='База данных'!$H$2:$H$100)*IF($D$9=\"\",1,$D$9='База данных'!$F$2:$H$100)*IF($E$12=\"\",1,'База данных'!$C$2:$C$100>=$E$12)*IF($G$12=\"\",1,'База данных'!$C$2:$C$100<=$G$12)*IF(D8=\"\",1,IF($D$8=\"да\",'База данных'!$H$2:$H$100=\"Выполнено\",'База данных'!$H$2:$H$100<>\"Выполнено\"))*IF(OR($B$4=\"\",$B$4=\"Введите запрос…\"),1,ISNUMBER(FIND($B$4,'База данных'!$B$2:$B$100)))=1,ROW($A$2:$A$100)),ROWS($I$12:I12))),\"\")","v":9},{"$f":"IF(I12=\"\",\"\",VLOOKUP(I12,'База данных'!A:H,2,))","v":"Товар: Корона\n ювелирные изделия, корона, королевская роскошь, украшения"}]
[null,null,null,null,null,null,null,null,{"$f":"IFERROR(INDEX('База данных'!A:A,SMALL(IF(IF($D$10=\"\",1,'База данных'!$G$2:$G$100=$D$10)*IF($D$11=\"\",1,$D$11='База данных'!$H$2:$H$100)*IF($D$9=\"\",1,$D$9='База данных'!$F$2:$H$100)*IF($E$12=\"\",1,'База данных'!$C$2:$C$100>=$E$12)*IF($G$12=\"\",1,'База данных'!$C$2:$C$100<=$G$12)*IF(D9=\"\",1,IF($D$8=\"да\",'База данных'!$H$2:$H$100=\"Выполнено\",'База данных'!$H$2:$H$100<>\"Выполнено\"))*IF(OR($B$4=\"\",$B$4=\"Введите запрос…\"),1,ISNUMBER(FIND($B$4,'База данных'!$B$2:$B$100)))=1,ROW($A$2:$A$100)),ROWS($I$12:I13))),\"\")","v":7},{"$f":"IF(I13=\"\",\"\",VLOOKUP(I13,'База данных'!A:H,2,))","v":"Товар: Двигатель\n двигатель, мотор, механика, автомобильная запчасть"}]
[null,null,null,null,null,null,null,null,{"$f":"IFERROR(INDEX('База данных'!A:A,SMALL(IF(IF($D$10=\"\",1,'База данных'!$G$2:$G$100=$D$10)*IF($D$11=\"\",1,$D$11='База данных'!$H$2:$H$100)*IF($D$9=\"\",1,$D$9='База данных'!$F$2:$H$100)*IF($E$12=\"\",1,'База данных'!$C$2:$C$100>=$E$12)*IF($G$12=\"\",1,'База данных'!$C$2:$C$100<=$G$12)*IF(D10=\"\",1,IF($D$8=\"да\",'База данных'!$H$2:$H$100=\"Выполнено\",'База данных'!$H$2:$H$100<>\"Выполнено\"))*IF(OR($B$4=\"\",$B$4=\"Введите запрос…\"),1,ISNUMBER(FIND($B$4,'База данных'!$B$2:$B$100)))=1,ROW($A$2:$A$100)),ROWS($I$12:I14))),\"\")","v":44},{"$f":"IF(I14=\"\",\"\",VLOOKUP(I14,'База данных'!A:H,2,))","v":"Товар: Замок\n замок, замковая система, безопасность, дверные замки"}]
[null,null,null,null,null,null,null,null,{"$f":"IFERROR(INDEX('База данных'!A:A,SMALL(IF(IF($D$10=\"\",1,'База данных'!$G$2:$G$100=$D$10)*IF($D$11=\"\",1,$D$11='База данных'!$H$2:$H$100)*IF($D$9=\"\",1,$D$9='База данных'!$F$2:$H$100)*IF($E$12=\"\",1,'База данных'!$C$2:$C$100>=$E$12)*IF($G$12=\"\",1,'База данных'!$C$2:$C$100<=$G$12)*IF(D11=\"\",1,IF($D$8=\"да\",'База данных'!$H$2:$H$100=\"Выполнено\",'База данных'!$H$2:$H$100<>\"Выполнено\"))*IF(OR($B$4=\"\",$B$4=\"Введите запрос…\"),1,ISNUMBER(FIND($B$4,'База данных'!$B$2:$B$100)))=1,ROW($A$2:$A$100)),ROWS($I$12:I15))),\"\")","v":80},{"$f":"IF(I15=\"\",\"\",VLOOKUP(I15,'База данных'!A:H,2,))","v":"Товар: Железо\n металл, строительство, промышленность, железная руда"}]
[null,null,null,null,null,null,null,null,{"$f":"IFERROR(INDEX('База данных'!A:A,SMALL(IF(IF($D$10=\"\",1,'База данных'!$G$2:$G$100=$D$10)*IF($D$11=\"\",1,$D$11='База данных'!$H$2:$H$100)*IF($D$9=\"\",1,$D$9='База данных'!$F$2:$H$100)*IF($E$12=\"\",1,'База данных'!$C$2:$C$100>=$E$12)*IF($G$12=\"\",1,'База данных'!$C$2:$C$100<=$G$12)*IF(D12=\"\",1,IF($D$8=\"да\",'База данных'!$H$2:$H$100=\"Выполнено\",'База данных'!$H$2:$H$100<>\"Выполнено\"))*IF(OR($B$4=\"\",$B$4=\"Введите запрос…\"),1,ISNUMBER(FIND($B$4,'База данных'!$B$2:$B$100)))=1,ROW($A$2:$A$100)),ROWS($I$12:I16))),\"\")","v":65},{"$f":"IF(I16=\"\",\"\",VLOOKUP(I16,'База данных'!A:H,2,))","v":"Товар: Стол\n стол, мебель, обеденный стол, рабочий стол\n"}]
[null,null,null,null,null,null,null,null,{"$f":"IFERROR(INDEX('База данных'!A:A,SMALL(IF(IF($D$10=\"\",1,'База данных'!$G$2:$G$100=$D$10)*IF($D$11=\"\",1,$D$11='База данных'!$H$2:$H$100)*IF($D$9=\"\",1,$D$9='База данных'!$F$2:$H$100)*IF($E$12=\"\",1,'База данных'!$C$2:$C$100>=$E$12)*IF($G$12=\"\",1,'База данных'!$C$2:$C$100<=$G$12)*IF(D13=\"\",1,IF($D$8=\"да\",'База данных'!$H$2:$H$100=\"Выполнено\",'База данных'!$H$2:$H$100<>\"Выполнено\"))*IF(OR($B$4=\"\",$B$4=\"Введите запрос…\"),1,ISNUMBER(FIND($B$4,'База данных'!$B$2:$B$100)))=1,ROW($A$2:$A$100)),ROWS($I$12:I17))),\"\")","v":30},{"$f":"IF(I17=\"\",\"\",VLOOKUP(I17,'База данных'!A:H,2,))","v":"Товар: Сумка\n сумка, аксессуар, мода, повседневные сумки"}]
[null,null,null,null,null,null,null,null,{"$f":"IFERROR(INDEX('База данных'!A:A,SMALL(IF(IF($D$10=\"\",1,'База данных'!$G$2:$G$100=$D$10)*IF($D$11=\"\",1,$D$11='База данных'!$H$2:$H$100)*IF($D$9=\"\",1,$D$9='База данных'!$F$2:$H$100)*IF($E$12=\"\",1,'База данных'!$C$2:$C$100>=$E$12)*IF($G$12=\"\",1,'База данных'!$C$2:$C$100<=$G$12)*IF(D14=\"\",1,IF($D$8=\"да\",'База данных'!$H$2:$H$100=\"Выполнено\",'База данных'!$H$2:$H$100<>\"Выполнено\"))*IF(OR($B$4=\"\",$B$4=\"Введите запрос…\"),1,ISNUMBER(FIND($B$4,'База данных'!$B$2:$B$100)))=1,ROW($A$2:$A$100)),ROWS($I$12:I18))),\"\")","v":65},{"$f":"IF(I18=\"\",\"\",VLOOKUP(I18,'База данных'!A:H,2,))","v":"Товар: Стол\n стол, мебель, обеденный стол, рабочий стол\n"}]
[null,null,null,null,null,null,null,null,{"$f":"IFERROR(INDEX('База данных'!A:A,SMALL(IF(IF($D$10=\"\",1,'База данных'!$G$2:$G$100=$D$10)*IF($D$11=\"\",1,$D$11='База данных'!$H$2:$H$100)*IF($D$9=\"\",1,$D$9='База данных'!$F$2:$H$100)*IF($E$12=\"\",1,'База данных'!$C$2:$C$100>=$E$12)*IF($G$12=\"\",1,'База данных'!$C$2:$C$100<=$G$12)*IF(D15=\"\",1,IF($D$8=\"да\",'База данных'!$H$2:$H$100=\"Выполнено\",'База данных'!$H$2:$H$100<>\"Выполнено\"))*IF(OR($B$4=\"\",$B$4=\"Введите запрос…\"),1,ISNUMBER(FIND($B$4,'База данных'!$B$2:$B$100)))=1,ROW($A$2:$A$100)),ROWS($I$12:I19))),\"\")","v":68},{"$f":"IF(I19=\"\",\"\",VLOOKUP(I19,'База данных'!A:H,2,))","v":"Товар: Камень\n драгоценные камни, украшения, горные породы, минералы"}]
[null,null,null,null,null,null,null,null,{"$f":"IFERROR(INDEX('База данных'!A:A,SMALL(IF(IF($D$10=\"\",1,'База данных'!$G$2:$G$100=$D$10)*IF($D$11=\"\",1,$D$11='База данных'!$H$2:$H$100)*IF($D$9=\"\",1,$D$9='База данных'!$F$2:$H$100)*IF($E$12=\"\",1,'База данных'!$C$2:$C$100>=$E$12)*IF($G$12=\"\",1,'База данных'!$C$2:$C$100<=$G$12)*IF(D16=\"\",1,IF($D$8=\"да\",'База данных'!$H$2:$H$100=\"Выполнено\",'База данных'!$H$2:$H$100<>\"Выполнено\"))*IF(OR($B$4=\"\",$B$4=\"Введите запрос…\"),1,ISNUMBER(FIND($B$4,'База данных'!$B$2:$B$100)))=1,ROW($A$2:$A$100)),ROWS($I$12:I20))),\"\")","v":61},{"$f":"IF(I20=\"\",\"\",VLOOKUP(I20,'База данных'!A:H,2,))","v":"Товар: Алюминий\n металл, алюминиевые изделия, стройматериалы, промышленность"}]
[null,null,null,null,null,null,null,null,{"$f":"IFERROR(INDEX('База данных'!A:A,SMALL(IF(IF($D$10=\"\",1,'База данных'!$G$2:$G$100=$D$10)*IF($D$11=\"\",1,$D$11='База данных'!$H$2:$H$100)*IF($D$9=\"\",1,$D$9='База данных'!$F$2:$H$100)*IF($E$12=\"\",1,'База данных'!$C$2:$C$100>=$E$12)*IF($G$12=\"\",1,'База данных'!$C$2:$C$100<=$G$12)*IF(D17=\"\",1,IF($D$8=\"да\",'База данных'!$H$2:$H$100=\"Выполнено\",'База данных'!$H$2:$H$100<>\"Выполнено\"))*IF(OR($B$4=\"\",$B$4=\"Введите запрос…\"),1,ISNUMBER(FIND($B$4,'База данных'!$B$2:$B$100)))=1,ROW($A$2:$A$100)),ROWS($I$12:I21))),\"\")","v":4},{"$f":"IF(I21=\"\",\"\",VLOOKUP(I21,'База данных'!A:H,2,))","v":"Товар: Стул\n стул, мебель, кресло, обеденный стул"}]
[null,null,null,null,null,null,null,null,{"$f":"IFERROR(INDEX('База данных'!A:A,SMALL(IF(IF($D$10=\"\",1,'База данных'!$G$2:$G$100=$D$10)*IF($D$11=\"\",1,$D$11='База данных'!$H$2:$H$100)*IF($D$9=\"\",1,$D$9='База данных'!$F$2:$H$100)*IF($E$12=\"\",1,'База данных'!$C$2:$C$100>=$E$12)*IF($G$12=\"\",1,'База данных'!$C$2:$C$100<=$G$12)*IF(D18=\"\",1,IF($D$8=\"да\",'База данных'!$H$2:$H$100=\"Выполнено\",'База данных'!$H$2:$H$100<>\"Выполнено\"))*IF(OR($B$4=\"\",$B$4=\"Введите запрос…\"),1,ISNUMBER(FIND($B$4,'База данных'!$B$2:$B$100)))=1,ROW($A$2:$A$100)),ROWS($I$12:I22))),\"\")","v":57},{"$f":"IF(I22=\"\",\"\",VLOOKUP(I22,'База данных'!A:H,2,))","v":"Товар: Часы\n часы, аксессуары, время, наручные часы"}]
[null,null,null,null,null,null,null,null,{"$f":"IFERROR(INDEX('База данных'!A:A,SMALL(IF(IF($D$10=\"\",1,'База данных'!$G$2:$G$100=$D$10)*IF($D$11=\"\",1,$D$11='База данных'!$H$2:$H$100)*IF($D$9=\"\",1,$D$9='База данных'!$F$2:$H$100)*IF($E$12=\"\",1,'База данных'!$C$2:$C$100>=$E$12)*IF($G$12=\"\",1,'База данных'!$C$2:$C$100<=$G$12)*IF(D19=\"\",1,IF($D$8=\"да\",'База данных'!$H$2:$H$100=\"Выполнено\",'База данных'!$H$2:$H$100<>\"Выполнено\"))*IF(OR($B$4=\"\",$B$4=\"Введите запрос…\"),1,ISNUMBER(FIND($B$4,'База данных'!$B$2:$B$100)))=1,ROW($A$2:$A$100)),ROWS($I$12:I23))),\"\")","v":49},{"$f":"IF(I23=\"\",\"\",VLOOKUP(I23,'База данных'!A:H,2,))","v":"Товар: Кофе\n кофе, напитки, зерна кофе, кофейный магазин"}]
[null,null,null,null,null,null,null,null,{"$f":"IFERROR(INDEX('База данных'!A:A,SMALL(IF(IF($D$10=\"\",1,'База данных'!$G$2:$G$100=$D$10)*IF($D$11=\"\",1,$D$11='База данных'!$H$2:$H$100)*IF($D$9=\"\",1,$D$9='База данных'!$F$2:$H$100)*IF($E$12=\"\",1,'База данных'!$C$2:$C$100>=$E$12)*IF($G$12=\"\",1,'База данных'!$C$2:$C$100<=$G$12)*IF(D20=\"\",1,IF($D$8=\"да\",'База данных'!$H$2:$H$100=\"Выполнено\",'База данных'!$H$2:$H$100<>\"Выполнено\"))*IF(OR($B$4=\"\",$B$4=\"Введите запрос…\"),1,ISNUMBER(FIND($B$4,'База данных'!$B$2:$B$100)))=1,ROW($A$2:$A$100)),ROWS($I$12:I24))),\"\")","v":75},{"$f":"IF(I24=\"\",\"\",VLOOKUP(I24,'База данных'!A:H,2,))","v":"Товар: Книга\n книга, литература, чтение, бестселлер"}]

{"sheet":"База данных","index":1,"n_rows":21,"n_cols":8,"rows_kept":21,"cut":false,"hidden":false,"merged":[]}
["номер заказа","наименование","цена, руб.","заказчик","срок доставки, дни","Вип заказ","Срочный заказ","Статус"]
[9,"Товар: Корона\n ювелирные изделия, корона, королевская роскошь, украшения",5262,"Колесникова София Александровна",12,"нет","да","Выполнено"]
[7,"Товар: Двигатель\n двигатель, мотор, механика, автомобильная запчасть",11053,"Голубева Алиса Артёмовна",12,"нет","да","В обработке"]
[44,"Товар: Замок\n замок, замковая система, безопасность, дверные замки",18503,"Васильева Николь Викторовна",6,"нет","да","Отменено"]
[80,"Товар: Железо\n металл, строительство, промышленность, железная руда",15782,"Зеленина Наталья Ивановна",8,"да","да","Выполнено"]
[1,"Товар: Дверь\n дверь, входная дверь, двери для дома, межкомнатные двери",8330,"Федотова Амелия Владимировна",4,"нет","нет","В обработке"]
[30,"Товар: Сумка\n сумка, аксессуар, мода, повседневные сумки",9866,"Позднякова Анастасия Максимовна",13,"нет","нет","В обработке"]
[65,"Товар: Стол\n стол, мебель, обеденный стол, рабочий стол\n",6466,"Воробьева Мария Максимовна",5,"да","нет","Отменено"]
[68,"Товар: Камень\n драгоценные камни, украшения, горные породы, минералы",17640,"Минина Ева Ильинична",9,"да","нет","Выполнено"]
[61,"Товар: Алюминий\n металл, алюминиевые изделия, стройматериалы, промышленность",5245,"Волков Иван Германович",3,"нет","да","Выполнено"]
[4,"Товар: Стул\n стул, мебель, кресло, обеденный стул",11493,"Виноградов Артём Владимирович",11,"да","нет","В обработке"]
[57,"Товар: Часы\n часы, аксессуары, время, наручные часы",13467,"Никитина Елизавета Кирилловна",14,"да","нет","В обработке"]
[49,"Товар: Кофе\n кофе, напитки, зерна кофе, кофейный магазин",12693,"Савицкий Руслан Константинович",4,"нет","нет","Выполнено"]
[75,"Товар: Книга\n книга, литература, чтение, бестселлер",13594,"Белкина Полина Никитична",10,"нет","да","Отменено"]
[20,"Товар: Компьютер\n компьютер, технология, электроника, ноутбук",14447,"Богданова Полина Ивановна",10,"нет","нет","Отменено"]
[52,"Товар: Косметика\n косметика, красота, уход за кожей, макияж",17137,"Леонтьева Алиса Константиновна",11,"да","нет","Выполнено"]
[46,"Товар: Лампа\n лампа, освещение, декор, настольная лампа",5877,"Лебедев Георгий Богданович",8,"да","да","В обработке"]
[40,"Товар: Футболка\n футболка, одежда, мода, мужская одежда",8265,"Некрасов Дмитрий Адамович",9,"да","да","В обработке"]
[2,"Товар: Смартфон\n смартфон, мобильный телефон, гаджет, электроника",12978,"Никитин Ян Алексеевич",14,"нет","нет","Выполнено"]
[95,"Товар: Медицинская маска\n маска, защита, медицинская маска, гигиена",17169,"Козлов Давид Иванович",13,"да","нет","Выполнено"]
[100,"Товар: Велосипед\n велосипед, спорт, транспорт, горный велосипед",12279,"Лопатин Владимир Вячеславович",6,"нет","да","Отменено"]